bitfinex/quotes_ETHUSD_20251120
["timestamp","ask_amount","ask_price","bid_price","bid_amount"]
[1763646970570,0.115,3013.5,3013.2,0.4805]
[1763646971090,3.31767118,3014.2,3013.4,0.4792]
[1763646971279,3.31767118,3014.2,3013.6,0.4792]
[1763646971280,0.115,3014.0,3013.6,0.4792]
[1763646971651,0.115,3014.0,3013.7,0.4805]
[1763646972151,0.115,3014.0,3013.3,0.4805]
[1763646972552,0.520504,3014.0,3013.3,0.4805]
[1763646972783,6.63592022,3013.9,3013.3,0.4805]
[1763646972984,1.31249664,3013.8,3013.1,0.1853]
[1763646973280,1.31249664,3013.8,3013.2,0.4805]
[1763646973486,0.4727,3013.2,3012.2,0.4805]
[1763646973689,0.4727,3013.2,3011.9,0.001]
[1763646973690,6.214725,3013.0,3011.9,0.001]
[1763646973864,0.1244,3012.2,3011.9,0.001]
[1763646974050,0.30476748,3012.8,3012.1,0.1853]
[1763646974251,0.520504,3012.7,3012.1,1.145]
[1763646974451,0.405504,3012.5,3012.1,1.145]
[1763646974650,0.90699264,3012.3,3012.1,1.145]
[1763646974885,0.90699264,3012.3,3012.1,0.6645]
[1763646974886,0.115,3012.2,3012.1,0.6645]
[1763646975068,0.115,3012.2,3012.1,0.1853]
[1763646975262,0.115,3012.2,3012.0,0.001]
[1763646975868,0.115,3012.2,3012.1,0.6645]
[1763646976189,0.115,3012.2,3012.1,1.145]
[1763646976571,0.30528799,3012.7,3012.1,1.145]
[1763646976764,0.52064533,3013.1,3012.1,1.145]
[1763646976765,7.04340642,3013.0,3012.2,0.4805]
[1763646976966,0.30531724,3012.9,3012.2,4.2468789]
[1763646977168,3.31863212,3013.3,3012.9,0.4792]
[1763646977369,3.31839034,3013.6,3013.2,0.6645]
[1763646977609,3.31839034,3013.6,3012.3,6.63944494]
[1763646977610,0.420428,3013.5,3012.3,6.63944494]
[1763646977762,0.115,3013.5,3012.7,0.4805]
[1763646978108,0.405504,3013.4,3012.7,0.4805]
[1763646978309,0.115,3013.5,3012.7,0.4805]
[1763646978457,0.45413374,3013.5,3012.7,0.4805]
[1763646978772,6.63724156,3013.3,3012.7,0.4805]
[1763646979756,3.31862078,3013.3,3012.7,0.4805]
[1763646979957,1.31249664,3013.2,3012.1,0.1853]
[1763646980202,0.115,3013.1,3012.2,0.4805]
[1763646980565,0.90699264,3013.2,3012.2,0.87917334]
[1763646980802,3.3179371,3014.0,3013.2,3.31873091]
[1763646981049,3.3179371,3014.0,3013.2,0.4792]
[1763646981247,0.115,3013.9,3013.3,0.4805]
[1763646982010,0.239,3013.9,3013.1,0.1853]
[1763646982348,0.03368486,3013.8,3013.1,0.6658]
[1763646982706,0.03368486,3013.8,3013.2,0.4805]
[1763646982953,0.90699264,3013.7,3013.2,0.4805]
[1763646983151,0.90699264,3013.8,3013.2,3.7991736]
[1763646983312,0.90699264,3013.8,3013.7,0.4792]
[1763646983514,0.115,3013.9,3013.7,0.4792]
[1763646983704,0.115,3013.9,3013.2,6.63740451]
[1763646983705,0.115,3013.9,3013.8,0.9597]
[1763646984113,0.1142,3013.9,3013.8,0.9597]
[1763646984311,3.64436011,3013.9,3013.1,0.1853]
[1763646984551,0.90699264,3013.8,3013.1,0.6658]
[1763646984780,0.90699264,3013.8,3012.9,0.001]
[1763646984781,0.405504,3013.7,3013.0,0.1853]
[1763646984983,6.63658082,3013.6,3013.0,0.1853]
[1763646985187,0.14868486,3013.5,3013.0,0.1853]
[1763646985336,1.0556775,3013.5,3012.9,0.001]
[1763646985668,1.42749664,3013.5,3013.4,0.1853]
[1763646985969,1.02199264,3013.5,3012.9,0.001]
[1763646986174,1.02199264,3013.5,3013.1,0.1853]
[1763646986870,3.31851065,3013.4,3012.9,0.001]
[1763646987084,6.6370213,3013.4,3012.9,0.001]
[1763646987231,0.03368486,3013.3,3012.9,0.001]
[1763646988435,0.405504,3013.2,3012.9,0.001]
[1763646988667,0.405504,3013.0,3012.9,0.001]
[1763646988870,4.63144785,3013.0,3012.9,0.001]
[1763646989445,4.22594385,3013.0,3012.9,0.001]
[1763646989648,0.115,3013.0,3012.9,0.001]
[1763646989850,0.405504,3013.1,3012.9,0.001]
[1763646990082,0.115,3013.0,3012.9,0.001]
[1763646991237,0.90699264,3013.3,3012.9,0.4611]
[1763646991547,0.115,3013.2,3012.9,0.9124]
[1763646991757,0.115,3013.2,3012.9,0.001]
[1763646992440,0.14868486,3013.2,3012.9,0.001]
[1763646992641,0.115,3013.2,3012.9,0.4523]
[1763646993154,3.31884106,3013.1,3012.9,0.4523]
[1763646993352,3.31884106,3013.1,3012.9,0.001]
[1763646993567,6.63768212,3013.1,3012.9,0.001]
[1763646994037,3.43375037,3013.2,3012.9,0.001]
[1763646994237,0.90699264,3013.1,3012.9,0.001]
[1763646994653,1.02199264,3013.2,3012.9,0.001]
[1763646994881,0.90699264,3013.1,3012.9,0.001]
[1763646995242,3.43395121,3013.0,3012.9,0.001]
[1763646995669,4.34094385,3013.0,3012.9,0.001]
[1763646995871,5.23894785,3013.0,3012.9,0.001]
[1763646996174,4.63144785,3013.0,3012.9,0.001]
[1763646996376,4.22594385,3013.0,3012.9,0.4611]
[1763646996543,4.34094385,3013.0,3012.9,0.001]
[1763646996739,4.83344385,3013.0,3012.9,0.001]
[1763646997154,4.74644785,3013.0,3012.9,0.001]
[1763646997453,5.23454785,3013.0,3012.9,0.001]
[1763646997841,5.32943271,3013.0,3012.9,0.001]
[1763646998041,5.26823271,3013.0,3012.9,0.001]
[1763646998257,4.78013271,3013.0,3012.9,0.001]
[1763646998863,5.26403271,3013.0,3012.9,0.001]
[1763646999963,4.78013271,3013.0,3012.9,0.001]
[1763647000682,5.32943271,3013.0,3012.9,0.001]
[1763647001051,8.92583227,3013.0,3012.9,0.001]
[1763647002658,8.61963885,3013.0,3012.9,0.001]
[1763647003661,20.67892624,3013.0,3012.9,0.001]
[1763647004173,19.95844524,3013.0,3012.9,0.001]
[1763647004580,21.94305224,3013.0,3012.9,0.001]
[1763647005148,1.31249664,3012.7,3012.5,0.001]
[1763647005380,19.84075734,3012.6,3012.5,0.001]
[1763647005578,32.48036836,3012.6,3012.5,0.001]
[1763647005880,24.33838736,3012.6,3012.5,0.001]
[1763647006079,16.97936236,3012.6,3012.5,0.001]
[1763647006482,12.20625136,3012.6,3012.5,0.001]
[1763647006708,23.67536336,3012.6,3012.5,0.001]
[1763647007560,27.91752336,3012.6,3012.5,0.001]
[1763647008074,0.405504,3012.3,3012.2,0.001]
[1763647008249,9.11246889,3012.3,3012.2,0.001]
[1763647008456,9.56438403,3012.3,3012.2,0.001]
[1763647008650,19.15408703,3012.3,3012.2,0.001]
[1763647008865,10.79768303,3012.3,3012.2,0.001]
[1763647009064,8.00904703,3012.3,3012.2,0.001]
[1763647009806,19.1347725,3012.3,3012.2,0.001]
[1763647009948,7.8386935,3012.3,3012.2,0.001]
[1763647010458,7.6806955,3012.3,3012.2,0.001]
[1763647010655,4.6497805,3012.3,3012.2,0.001]
[1763647011309,6.83258986,3012.3,3012.2,0.001]
[1763647011479,3.62778786,3012.3,3012.2,0.001]
[1763647011794,5.0552845,3012.3,3012.2,0.001]
[1763647011997,3.31972247,3012.3,3012.2,0.001]
[1763647012300,3.31884106,3013.1,3012.2,0.9867]
[1763647012594,3.31884106,3013.1,3011.7,0.001]
[1763647012595,0.4859,3011.8,3010.6,1.18724993]
[1763647012795,12.23217809,3011.6,3010.5,0.4921]
[1763647012961,11.73395579,3011.6,3010.5,0.4921]
[1763647013160,12.21535579,3011.6,3010.5,0.4921]
[1763647013614,0.405504,3011.3,3009.7,0.1853]
[1763647013765,0.405504,3010.5,3009.7,0.1853]
[1763647013964,0.405504,3010.5,3009.8,0.4921]
[1763647013965,0.405504,3010.3,3009.8,0.4921]
[1763647014467,0.71037955,3010.3,3009.7,0.1853]
[1763647014876,0.405504,3010.3,3009.7,0.1853]
[1763647015396,0.405504,3010.1,3009.7,0.1853]
[1763647015774,0.90699264,3009.9,3009.7,0.6774]
[1763647016099,0.115,3009.8,3009.7,0.6774]
[1763647016400,3.72769841,3010.1,3009.8,0.4936]
[1763647016564,1.42749664,3010.0,3009.9,0.4936]
[1763647017270,1.42749664,3010.0,3009.7,0.1853]
[1763647017469,0.405504,3009.9,3009.7,0.1853]
[1763647017899,4.63497653,3009.8,3009.7,0.1853]
[1763647018299,1.31249664,3009.8,3009.7,1.171]
[1763647018502,1.02199264,3009.8,3009.7,1.171]
[1763647019010,0.90699264,3009.8,3009.7,1.171]
[1763647019304,0.1223,3011.0,3009.7,4.49359029]
[1763647019474,0.90699264,3010.8,3010.3,0.4936]
[1763647019672,0.405504,3010.6,3010.3,0.4936]
[1763647019874,0.405504,3010.6,3010.4,0.6842]
[1763647020074,1.31249664,3010.5,3010.4,0.6842]
[1763647020376,0.405504,3010.5,3010.4,0.1921]
[1763647020577,0.115,3010.5,3010.4,0.6857]
[1763647021003,0.115,3010.5,3010.4,1.1778]
[1763647021192,6.64209092,3011.1,3010.4,1.1778]
[1763647021394,6.64209092,3011.1,3010.5,0.4921]
[1763647021580,0.115,3011.0,3010.5,0.4921]
[1763647021780,0.115,3011.0,3010.4,0.6857]
[1763647021781,0.115,3010.9,3010.4,0.1921]
[1763647021981,0.14868486,3010.9,3010.4,0.1921]
[1763647022170,1.31249664,3010.7,3010.4,0.1921]
[1763647022375,1.31249664,3010.7,3010.4,0.6842]
[1763647022575,1.31249664,3010.7,3009.8,0.4921]
[1763647022576,0.43918886,3010.6,3009.8,0.4921]
[1763647022804,0.115,3010.5,3009.8,0.4921]
[1763647023010,0.405504,3010.3,3009.8,0.4921]
[1763647023204,0.405504,3010.3,3009.6,0.001]
[1763647023205,0.3226,3009.7,3009.6,0.001]
[1763647023511,0.3226,3009.7,3009.3,0.001]
[1763647023512,0.405504,3009.4,3009.3,0.001]
[1763647023674,0.405504,3009.4,3007.3,0.1921]
[1763647023675,1.31249664,3009.0,3007.3,0.1921]
[1763647023881,1.31249664,3007.9,3007.3,0.1921]
[1763647024085,0.90699264,3007.5,3007.3,0.1921]
[1763647024308,0.115,3007.4,3007.3,0.1921]
[1763647025222,0.90699264,3008.1,3007.3,0.6842]
[1763647025511,0.520504,3008.0,3007.3,0.1921]
[1763647026088,1.31249664,3007.8,3007.3,0.1921]
[1763647026427,0.115,3007.7,3007.3,0.1921]
[1763647026636,0.115,3007.7,3007.3,0.6842]
[1763647026777,3.32336324,3009.0,3007.7,0.4936]
[1763647026981,0.115,3008.9,3008.2,0.6857]
[1763647027230,1.02199264,3008.9,3008.2,0.6857]
[1763647027410,3.52069769,3009.1,3008.2,0.6857]
[1763647027580,6.69840094,3009.4,3008.3,0.4921]
[1763647027581,3.32321185,3009.2,3008.3,0.4921]
[1763647027923,0.115,3009.1,3008.3,0.4921]
[1763647028094,0.115,3009.1,3008.2,0.1921]
[1763647028095,6.64672648,3009.0,3008.2,0.1921]
[1763647028296,0.90699264,3008.9,3008.2,0.1921]
[1763647028597,6.64672648,3009.0,3008.2,0.1921]
[1763647028798,1.31249664,3008.9,3008.2,0.1921]
[1763647029430,0.115,3008.8,3008.3,0.4543]
[1763647029709,1.31249664,3008.9,3008.3,0.8513568]
[1763647029914,0.115,3008.7,3008.3,0.8513568]
[1763647030293,0.405504,3008.6,3008.2,0.1921]
[1763647030494,1.31249664,3008.6,3007.3,3.5173199]
[1763647030710,1.31249664,3008.6,3008.1,0.0751]
[1763647031065,0.405504,3008.1,3007.3,0.1921]
[1763647031177,0.405504,3007.9,3007.3,0.1921]
[1763647031383,0.115,3007.8,3007.4,0.4543]
[1763647031700,0.115,3007.7,3007.4,0.4543]
[1763647032092,0.404704,3008.5,3007.6,0.4591]
[1763647032388,0.404704,3008.5,3007.7,0.4543]
[1763647032389,1.02199264,3008.4,3007.7,0.4543]
[1763647032604,0.90699264,3008.4,3007.7,0.4543]
[1763647032821,0.115,3008.3,3007.7,0.4543]
[1763647033184,0.115,3008.3,3007.4,3.32509281]
[1763647033383,0.115,3008.3,3007.4,0.35171928]
[1763647033801,0.115,3008.3,3007.3,3.51734105]
[1763647034012,0.115,3008.3,3007.4,0.4543]
[1763647034200,0.405504,3008.2,3007.4,0.4543]
[1763647034519,1.31249664,3008.0,3007.3,0.1921]
[1763647034819,1.31249664,3008.0,3007.4,0.4543]
[1763647034820,0.405504,3007.8,3007.4,0.4543]
[1763647035787,0.90699264,3008.7,3007.7,0.4591]
[1763647035987,0.115,3008.6,3007.8,0.4591]
[1763647036210,0.41765967,3008.6,3007.8,0.4591]
[1763647036521,1.42838174,3008.7,3007.8,0.4591]
[1763647036522,3.84511178,3008.7,3007.8,7.56274337]
[1763647036723,1.02199264,3008.6,3007.8,4.23805423]
[1763647036926,7.16883446,3008.7,3007.9,0.4543]
[1763647036927,0.5213891,3008.7,3007.9,0.4543]
[1763647037092,0.03368486,3008.5,3007.9,0.4543]
[1763647037291,0.115,3008.6,3007.9,0.4543]
[1763647037531,0.03368486,3008.5,3007.9,0.4543]
[1763647037830,0.115,3008.6,3008.5,0.0751]
[1763647038006,0.115,3008.6,3008.5,0.5342]
[1763647038199,7.55399977,3008.9,3008.5,0.0751]
[1763647038424,0.115,3008.8,3008.1,3.3243145]
[1763647038626,3.32369461,3008.7,3008.1,3.3994145]
[1763647038934,0.405504,3008.7,3008.2,0.4543]
[1763647039241,0.115,3008.6,3008.2,0.4543]
[1763647039541,1.31249664,3008.7,3008.2,0.4543]
[1763647039719,0.115,3008.5,3008.2,0.4543]
[1763647039888,3.32544409,3009.0,3008.6,0.4591]
[1763647039889,0.002,3009.0,3008.6,0.4591]
[1763647040095,0.002,3009.0,3008.9,0.4591]
[1763647040321,0.117,3009.0,3008.9,0.4591]
[1763647040543,0.002,3009.0,3008.9,0.4591]
[1763647040704,0.117,3009.0,3008.9,0.9134]
[1763647041041,0.002,3009.0,3008.9,0.9134]
[1763647041258,0.117,3009.0,3008.9,0.9134]
[1763647042451,0.117,3009.0,3008.9,4.23687369]
[1763647042751,0.117,3009.0,3008.9,4.99291921]
[1763647043917,0.117,3009.0,3008.9,0.4591]
[1763647044347,0.117,3009.0,3008.9,3.78257369]
[1763647044525,0.117,3009.0,3008.9,4.23687369]
[1763647045451,0.002,3009.0,3008.9,4.23687369]
[1763647045827,0.117,3009.0,3008.9,4.23687369]
[1763647046135,0.002,3009.0,3008.9,4.99291911]
[1763647046455,0.002,3009.4,3008.9,4.99291911]
[1763647046456,0.115,3009.3,3008.9,11.63986649]
[1763647046645,0.115,3009.3,3009.0,0.4543]
[1763647046951,0.115,3009.3,3009.2,0.6394]
[1763647047348,0.115,3009.3,3009.2,1.0937]
[1763647047560,0.002,3009.4,3009.2,1.0937]
[1763647047768,0.002,3009.4,3009.3,0.9134]
[1763647048618,0.002,3009.4,3009.3,4.23643193]
[1763647048826,0.002,3009.4,3009.3,5.01041894]
[1763647050723,0.3246,3009.7,3009.3,11.6564828]
[1763647050922,0.30457655,3010.7,3009.6,0.4745]
[1763647051153,0.2987,3009.7,3009.5,6.21280094]
[1763647051334,0.1895,3009.5,3008.2,0.4519]
[1763647051547,0.2976,3009.4,3008.3,0.03324136]
[1763647051723,0.2976,3009.4,3008.2,0.4519]
[1763647051928,0.60207093,3009.4,3008.3,0.3846852]
[1763647052377,0.60207093,3009.4,3008.4,0.4519]
[1763647052565,0.90699264,3009.2,3008.5,3.32391557]
[1763647052923,0.70983386,3009.1,3008.1,3.39495278]
[1763647053131,0.115,3009.0,3008.1,3.39495278]
[1763647053424,0.115,3009.0,3007.5,0.90699264]
[1763647053425,0.405504,3008.9,3007.6,0.4519]
[1763647053659,0.405504,3008.9,3007.7,3.32479968]
[1763647053660,0.90281742,3008.9,3007.7,3.32479968]
[1763647053860,0.90281742,3008.9,3007.7,6.64959936]
[1763647053861,0.405504,3008.7,3007.7,6.64959936]
[1763647054064,0.405504,3008.7,3007.8,0.4519]
[1763647054223,0.405504,3008.7,3007.8,1.19981898]
[1763647054430,0.30436012,3008.8,3007.4,0.4519]
[1763647054431,0.405504,3008.5,3007.4,0.4519]
[1763647054729,6.6482731,3008.3,3007.4,3.77701389]
[1763647055361,6.6482731,3008.3,3007.3,0.1931]
[1763647055362,1.77809664,3008.2,3007.3,0.1931]
[1763647055527,1.77809664,3008.2,3007.3,3.51830297]
[1763647055729,0.6585,3008.9,3007.3,7.49841984]
[1763647055928,1.31249664,3008.7,3007.4,0.4519]
[1763647056182,0.404704,3008.5,3007.4,0.4519]
[1763647056392,0.4656,3008.4,3007.4,0.4519]
[1763647056707,0.90699264,3008.2,3007.3,4.17317793]
[1763647056996,0.115,3008.1,3007.4,0.86921779]
[1763647057361,0.115,3008.1,3008.0,0.001]
[1763647058373,1.0569,3008.1,3008.0,0.001]
[1763647058677,4.38125756,3008.1,3008.0,0.001]
[1763647058992,5.2882502,3008.1,3008.0,0.001]
[1763647059358,1.48849264,3008.1,3008.0,0.001]
[1763647059558,1.02199264,3008.1,3008.0,0.001]
[1763647060327,4.8129502,3008.1,3008.0,0.001]
[1763647060528,1.48859264,3008.1,3008.0,0.001]
[1763647060828,0.115,3008.1,3008.0,0.001]
[1763647060998,0.115,3008.1,3008.0,0.9587]
[1763647061408,0.115,3008.1,3008.0,0.4757]
[1763647061931,0.1929,3008.9,3008.0,0.9587]
[1763647062118,0.115,3008.8,3008.1,0.0706]
[1763647062431,1.02199264,3008.8,3008.1,0.0706]
[1763647062628,0.51258486,3008.7,3008.0,0.001]
[1763647062828,0.90699264,3008.4,3008.0,0.001]
[1763647063036,0.115,3008.3,3008.0,0.001]
[1763647063534,0.4632,3008.1,3008.0,0.001]
[1763647063925,0.9419,3008.1,3008.0,0.001]
[1763647064635,0.4632,3008.1,3008.0,0.001]
[1763647064818,4.19306156,3008.1,3008.0,0.001]
[1763647065134,5.5787542,3008.1,3008.0,0.001]
[1763647065434,5.88333103,3008.1,3008.0,0.001]
[1763647065944,5.91701589,3008.1,3008.0,0.001]
[1763647066433,5.88333103,3008.1,3008.0,0.001]
[1763647066798,5.91701589,3008.1,3008.0,0.001]
[1763647067439,5.88333103,3008.1,3008.0,0.001]
[1763647067643,16.37850389,3008.1,3008.0,0.001]
[1763647067829,15.32630303,3008.1,3008.0,0.001]
[1763647068034,9.78054503,3008.1,3008.0,0.001]
[1763647068408,8.57996803,3008.1,3008.0,0.001]
[1763647068733,9.3563252,3008.1,3008.0,0.001]
[1763647068936,9.66072293,3008.1,3008.0,0.001]
[1763647069440,8.21450893,3008.1,3008.0,0.001]
[1763647069745,8.21450893,3008.1,3007.7,0.001]
[1763647069746,0.405504,3007.8,3007.7,0.001]
[1763647069947,6.37451637,3007.8,3007.7,0.001]
[1763647070243,2.28519437,3007.8,3007.7,0.001]
[1763647070543,5.06909323,3007.8,3007.7,0.001]
[1763647070913,5.03540837,3007.8,3007.7,0.001]
[1763647071312,8.07874351,3007.8,3007.7,0.001]
[1763647071915,11.29162251,3007.8,3007.7,0.001]
[1763647072270,11.29162251,3007.8,3005.0,0.1881]
[1763647072271,30.0,3007.3,3005.0,0.1881]
[1763647072564,30.0,3007.3,3004.1,2.96223282]
[1763647072565,1.31249664,3006.0,3004.8,0.1881]
[1763647072761,0.30439773,3005.9,3004.9,0.03327897]
[1763647073065,0.405504,3005.8,3004.9,0.483]
[1763647073216,1.31249664,3005.6,3004.9,0.483]
[1763647075670,0.115,3005.8,3005.7,0.9577]
[1763647076174,0.115,3005.8,3004.8,0.1881]
[1763647076175,0.115,3005.8,3005.3,0.6711]
[1763647076477,1.02199264,3005.8,3005.3,0.1881]
[1763647076779,1.02199264,3005.8,3005.5,0.001]
[1763647076780,7.6758913,3005.8,3005.5,0.001]
[1763647077078,0.405504,3005.7,3005.5,0.001]
[1763647077376,5.12061934,3005.6,3005.5,0.001]
[1763647077863,1.79349664,3005.6,3005.5,0.001]
[1763647078072,5.12061934,3005.6,3005.5,0.001]
[1763647078252,0.90699264,3005.6,3005.5,0.4757]
[1763647078451,1.02199264,3005.6,3005.5,0.4757]
[1763647078647,0.90699264,3005.6,3005.5,0.4757]
[1763647078847,0.90699264,3005.6,3005.5,0.9587]
[1763647079080,1.02199264,3005.6,3005.5,0.9587]
[1763647080380,0.6635,3006.8,3005.5,4.2859334]
[1763647080686,0.405504,3006.3,3005.5,0.001]
[1763647080887,0.405504,3006.1,3005.5,0.001]
[1763647081276,6.65335994,3006.0,3005.5,0.001]
[1763647081478,10.45893991,3006.0,3005.5,0.001]
[1763647081692,0.886504,3005.6,3005.5,0.001]
[1763647081890,1.001504,3005.6,3005.5,0.001]
[1763647082187,1.011204,3005.6,3005.5,0.001]
[1763647082795,0.405504,3005.6,3005.5,0.001]
[1763647082967,0.115,3005.6,3005.5,0.4757]
[1763647083170,0.115,3005.6,3005.5,0.9587]
[1763647083572,0.115,3005.6,3005.5,0.001]
[1763647084072,4.34911534,3005.6,3005.5,0.001]
[1763647084269,5.71451934,3005.6,3005.5,0.001]
[1763647085289,5.7482042,3005.6,3005.5,0.001]
[1763647085780,5.71451934,3005.6,3005.5,0.001]
[1763647086600,15.7650722,3005.6,3005.5,0.001]
[1763647086800,9.957448,3005.5,3002.6,0.1881]
[1763647086972,9.957448,3005.5,3002.6,0.86799259]
[1763647086973,0.405504,3003.9,3002.6,0.86799259]
[1763647087173,0.1846,3004.0,3002.6,0.86799259]
[1763647087174,0.405504,3003.7,3002.7,0.483]
[1763647087419,0.115,3003.8,3002.8,6.66045024]
[1763647087606,0.405504,3003.7,3002.8,3.33022512]
[1763647087772,0.405504,3003.7,3002.6,0.1881]
[1763647087974,0.884404,3003.7,3002.6,0.1881]
[1763647088212,0.884404,3003.7,3002.4,0.1842]
[1763647088373,0.405504,3003.6,3002.4,0.6637]
[1763647088576,6.70227993,3004.0,3002.5,0.03330557]
[1763647088577,0.1846,3004.0,3002.5,0.03330557]
[1763647088812,0.520504,3003.9,3002.5,0.4795]
[1763647089334,0.470504,3003.9,3002.6,6.66089388]
[1763647089475,8.03555045,3003.9,3002.7,0.71403939]
[1763647089782,8.03555045,3003.9,3002.6,3.33044694]
[1763647089783,11.85469864,3003.9,3002.6,3.33044694]
[1763647089987,0.405504,3003.7,3002.4,3.99430279]
[1763647090174,0.895604,3003.7,3002.4,7.32497158]
[1763647090375,0.895604,3003.7,3002.5,0.4795]
[1763647090986,0.405504,3003.8,3002.5,0.4795]
[1763647091218,0.405504,3003.5,3002.5,0.4795]
[1763647091400,0.405504,3003.3,3002.5,7.87304006]
[1763647091707,0.115,3003.4,3002.5,7.87304006]
[1763647092035,0.115,3003.4,3002.6,0.4795]
[1763647092525,0.115,3003.4,3003.3,0.5356]
[1763647093023,0.115,3003.4,3003.3,0.0833]
[1763647093188,0.115,3003.4,3003.3,0.5356]
[1763647093397,0.115,3003.4,3002.9,0.4795]
[1763647093582,0.115,3003.4,3002.5,7.39356229]
[1763647093794,0.115,3003.4,3003.3,0.0872]
[1763647094022,0.115,3003.4,3003.3,0.5395]
[1763647094238,0.115,3003.4,3003.3,1.019]
[1763647094604,0.115,3003.4,3003.3,0.5395]
[1763647094917,0.115,3003.4,3003.1,0.1842]
[1763647095119,0.115,3003.4,3002.6,0.75777623]
[1763647095302,0.115,3003.4,3002.7,1.26933414]
[1763647095501,0.115,3003.4,3002.8,3.33022512]
[1763647095703,0.115,3003.4,3003.0,0.001]
[1763647095957,1.31249664,3003.3,3003.0,0.001]
[1763647096618,6.77416487,3003.4,3003.0,0.001]
[1763647096932,0.4901,3003.3,3003.0,0.001]
[1763647097142,6.77416487,3003.4,3003.0,0.001]
[1763647097143,0.115,3003.4,3003.0,0.001]
[1763647097319,3.44456411,3003.4,3003.0,0.001]
[1763647097627,0.115,3003.4,3003.0,0.001]
[1763647097811,3.44457331,3003.4,3003.0,0.001]
[1763647098126,3.44456196,3003.4,3003.0,0.001]
[1763647098715,0.115,3003.4,3003.0,0.001]
[1763647099436,0.115,3003.4,3003.3,0.4523]
[1763647099735,0.115,3003.4,3003.3,3.78197069]
[1763647099948,0.115,3003.4,3003.3,0.4523]
[1763647100090,0.115,3003.4,3003.3,3.78197069]
[1763647100293,0.115,3003.4,3003.3,0.4523]
[1763647100827,0.115,3003.4,3003.1,0.0872]
[1763647101220,0.115,3003.4,3003.1,3.89658837]
[1763647101426,0.115,3003.4,3003.1,4.61933899]
[1763647101660,0.115,3003.4,3003.3,0.4523]
[1763647102025,0.30247933,3004.2,3003.3,0.9318]
[1763647102283,0.115,3004.1,3003.3,0.9318]
[1763647102438,0.115,3004.0,3003.4,0.4795]
[1763647102859,0.03368486,3003.9,3003.1,7.94923143]
[1763647103161,0.03368486,3003.9,3003.2,0.79502314]
[1763647103654,0.03368486,3003.9,3003.3,3.32967069]
[1763647103857,0.33616419,3003.9,3003.2,0.4795]
[1763647104058,0.115,3004.0,3003.1,0.0872]
[1763647104059,0.115,3004.0,3003.3,0.4795]
[1763647104262,0.1142,3004.0,3003.3,1.20214308]
[1763647104665,3.7457798,3004.0,3003.3,1.20214308]
[1763647104981,3.44315089,3004.0,3003.3,1.20214308]
[1763647105863,0.1142,3004.0,3003.4,3.32955983]
[1763647106066,3.74602431,3004.0,3003.4,3.32955983]
[1763647106284,0.1142,3004.0,3003.4,3.32955983]
[1763647106436,0.41727014,3004.0,3003.9,0.4523]
[1763647106643,0.1142,3004.0,3003.5,0.4795]
[1763647106877,0.1142,3004.0,3003.4,4.11569353]
[1763647106878,0.1142,3004.0,3003.4,3.32955983]
[1763647107175,0.03368486,3003.9,3003.2,3.80918479]
[1763647107486,0.1142,3004.0,3003.3,0.38963848]
[1763647107693,0.1142,3004.0,3003.3,0.86913848]
[1763647107839,0.1142,3004.0,3003.4,3.32955983]
[1763647108036,0.41740874,3004.0,3003.4,3.32955983]
[1763647108276,0.03368486,3003.9,3003.1,3.41709244]
[1763647108447,0.33698285,3003.9,3003.1,3.41709244]
[1763647108646,0.33698285,3003.9,3003.2,0.34180924]
[1763647108847,0.03368486,3003.9,3003.2,0.82130924]
[1763647109058,0.33698285,3003.9,3003.2,0.4795]
[1763647109575,0.4901,3003.8,3003.1,3.41709244]
[1763647109774,0.30329799,3003.8,3003.1,6.74698488]
[1763647110070,0.30329799,3003.9,3003.1,6.74698488]
[1763647110272,0.30329799,3003.9,3003.1,7.94923337]
[1763647110273,0.115,3003.8,3003.1,7.94923337]
[1763647110854,0.115,3003.8,3003.2,0.4795]
[1763647112496,0.115,3003.8,3003.3,3.32967069]
[1763647112727,0.115,3003.8,3003.7,0.4523]
[1763647113627,0.115,3003.8,3003.7,0.43535496]
[1763647114313,0.115,3003.8,3003.3,3.80917069]
[1763647114520,0.30345475,3003.7,3003.2,3.32975579]
[1763647114892,0.30345475,3003.7,3003.2,6.65953735]
[1763647115100,0.30345475,3003.7,3003.2,3.32975579]
[1763647115325,0.30345475,3003.6,3003.2,3.32975579]
[1763647115618,0.30345475,3003.6,3003.1,3.41706235]
[1763647115619,0.30345475,3003.5,3003.1,0.0872]
[1763647115918,0.30345475,3003.5,3003.0,0.473]
[1763647115919,0.115,3003.4,3003.0,0.001]
[1763647116343,0.115,3003.4,3003.3,0.4733]
[1763647116543,0.41909009,3003.4,3003.1,0.056]
[1763647116706,0.30409009,3003.3,3003.1,0.056]
[1763647117041,0.115,3003.4,3003.1,3.38588275]
[1763647117210,0.30417249,3003.3,3003.1,3.38588275]
[1763647117403,0.115,3003.4,3003.0,0.001]
[1763647117404,0.5877,3003.4,3003.0,0.001]
[1763647117609,4.10652913,3003.3,3003.0,0.001]
[1763647117909,0.30415844,3003.2,3003.0,0.001]
[1763647118206,0.30415844,3003.1,3003.0,0.001]
[1763647118425,3.63387106,3003.3,3003.0,0.001]
[1763647118622,0.30415844,3003.2,3003.0,0.001]
[1763647118835,0.30415844,3003.1,3003.0,0.001]
[1763647119037,0.76325844,3003.1,3003.0,0.001]
[1763647119527,0.4591,3003.1,3003.0,0.001]
[1763647119734,0.76325844,3003.1,3003.0,0.001]
[1763647119935,0.4591,3003.1,3003.0,0.001]